bitfinex/quotes_ETHUSD_20250526
["timestamp","ask_amount","ask_price","bid_price","bid_amount"]
[1748231081899,0.7785,2558.6,2558.4,4.36413317]
[1748231083903,0.7785,2558.6,2558.4,3.901]
[1748231084503,0.7785,2558.6,2558.2,4.122]
[1748231084703,0.7785,2558.6,2558.3,3.902]
[1748231085108,3.02482971,2558.5,2558.3,3.902]
[1748231092090,3.02482971,2558.5,2558.2,8.024]
[1748231098532,3.02482971,2558.7,2558.2,8.95542332]
[1748231101335,3.02482971,2558.7,2558.3,0.8166]
[1748231101500,3.82292971,2558.9,2558.3,0.8166]
[1748231101829,3.02482971,2559.3,2558.3,1.36775519]
[1748231102137,3.84502971,2559.4,2558.5,0.8166]
[1748231102296,3.84502971,2559.4,2558.6,4.7186]
[1748231102892,0.8202,2559.6,2558.7,0.8166]
[1748231103120,3.02482971,2559.5,2558.7,0.8166]
[1748231104053,3.02482971,2559.5,2559.1,0.7625]
[1748231104237,3.02482971,2559.5,2559.2,3.902]
[1748231105055,0.1,2559.9,2559.3,0.7625]
[1748231105218,0.1,2559.9,2559.5,0.7625]
[1748231105418,3.02482971,2559.6,2559.5,4.116]
[1748231105624,3.02482971,2559.6,2559.5,8.018]
[1748231105826,3.02482971,2559.6,2559.5,8.48113317]
[1748231106435,3.02482971,2559.8,2559.5,0.46313317]
[1748231106637,3.02482971,2559.8,2559.6,3.902]
[1748231107653,3.02482971,2559.8,2559.5,8.018]
[1748231111856,3.02482971,2559.8,2559.5,8.8198]
[1748231113357,0.1,2559.9,2559.6,0.8001]
[1748231119069,0.1,2559.9,2559.6,8.8001]
[1748231119579,0.1,2559.9,2559.8,0.8041]
[1748231120066,0.1,2559.9,2559.8,6.69766388]
[1748231120282,0.1,2559.9,2559.8,8.78593578]
[1748231120931,0.1,2559.9,2559.8,16.78593578]
[1748231121238,0.04508795,2560.9,2559.9,9.3541]
[1748231121448,0.04508795,2560.9,2560.3,0.55]
[1748231121648,0.04508795,2560.9,2560.7,0.55]
[1748231121852,0.04508795,2560.9,2560.8,9.3541]
[1748231123343,0.04508795,2560.9,2560.8,17.3681]
[1748231123969,0.04508795,2560.9,2560.8,17.82622333]
[1748231125556,0.04508795,2560.9,2560.8,17.3681]
[1748231125761,0.04508795,2560.9,2560.8,17.76610975]
[1748231125936,0.04508795,2560.9,2560.8,23.91377363]
[1748231126374,0.04508795,2560.9,2560.8,15.89977363]
[1748231126579,0.04508795,2560.9,2560.8,23.91177363]
[1748231126876,3.06991766,2560.9,2560.7,0.45812333]
[1748231127077,3.06991766,2560.9,2560.8,3.899]
[1748231127373,0.04508795,2560.9,2560.8,3.899]
[1748231131344,0.04508795,2560.9,2560.8,8.011]
[1748231132477,0.04508795,2560.9,2560.3,0.7697]
[1748231132780,3.02482971,2560.7,2560.4,8.011]
[1748231132950,0.04508795,2560.9,2560.4,8.011]
[1748231133157,0.04508795,2560.9,2560.5,0.806]
[1748231133340,0.04508795,2560.9,2560.6,0.55]
[1748231133991,0.04508795,2560.9,2560.7,0.03904347]
[1748231134664,0.04508795,2560.9,2560.6,0.55]
[1748231137051,0.04508795,2560.9,2560.7,0.7685]
[1748231137390,0.04508795,2560.9,2560.8,0.55]
[1748231137757,0.04508795,2560.9,2560.8,6.69766388]
[1748231140391,0.04508795,2560.9,2560.8,15.52706388]
[1748231141089,0.04508795,2560.9,2560.8,15.98518721]
[1748231142993,0.04508795,2560.9,2560.8,24.08618721]
[1748231145374,0.04508795,2560.9,2560.8,20.18818721]
[1748231145575,0.04508795,2560.9,2560.8,24.08618721]
[1748231146701,0.04508795,2560.9,2560.8,23.62806388]
[1748231154699,0.04508795,2560.9,2560.8,23.62606388]
[1748231155115,0.04508795,2560.9,2560.8,15.52706388]
[1748231155316,0.04508795,2560.9,2560.8,23.62606388]
[1748231162608,0.04508795,2560.9,2560.8,15.52706388]
[1748231162916,0.04508795,2560.9,2560.8,22.79666388]
[1748231163315,0.04508795,2560.9,2560.8,14.69766388]
[1748231163511,0.04508795,2560.9,2560.8,14.24666388]
[1748231164023,0.04508795,2560.9,2560.8,22.24666388]
[1748231165226,0.04508795,2560.9,2560.8,23.61806388]
[1748231166090,0.04508795,2560.9,2560.8,22.79666388]
[1748231166329,0.85828795,2560.9,2560.8,8.0]
[1748231166528,0.85828795,2560.9,2560.8,16.078]
[1748231169821,0.85828795,2560.9,2560.8,8.078]
[1748231170433,0.85828795,2560.9,2560.8,4.181]
[1748231170637,3.82861766,2560.9,2560.8,4.181]
[1748231170801,3.82861766,2560.9,2560.8,8.078]
[1748231171136,3.82861766,2560.9,2560.8,8.69514075]
[1748231172547,3.82861766,2560.9,2560.8,8.078]
[1748231175215,4.21147943,2560.9,2560.8,8.079]
[1748231177553,0.7722,2560.8,2560.5,3.898]
[1748231177741,3.02482971,2560.6,2560.5,3.898]
[1748231177950,3.79702971,2560.6,2560.5,3.898]
[1748231178865,0.8265,2560.5,2560.3,4.182]
[1748231179175,3.85132971,2560.4,2560.3,4.182]
[1748231179331,3.85132971,2560.4,2560.3,8.08]
[1748231180965,3.85132971,2560.4,2560.3,8.081]
[1748231188689,1.25634972,2560.9,2560.3,8.081]
[1748231188838,3.89831766,2560.9,2560.3,8.081]
[1748231193385,0.04508795,2560.9,2560.5,1.3764]
[1748231193589,0.04508795,2560.9,2560.6,0.8264]
[1748231193898,0.04508795,2560.9,2560.6,1.28924512]
[1748231194065,0.04508795,2560.9,2560.7,8.082]
[1748231194265,0.04508795,2560.9,2560.8,8.082]
[1748231194673,0.04508795,2560.9,2560.8,9.3971]
[1748231196355,0.04508795,2560.9,2560.8,17.3971]
[1748231196795,0.04508795,2560.9,2560.8,17.90917237]
[1748231198069,1.53391902,2561.7,2560.9,8.7941]
[1748231198269,1.53391902,2561.7,2561.4,0.7941]
[1748231198486,1.53391902,2561.7,2561.6,9.3441]
[1748231198722,1.53391902,2561.7,2561.6,9.94140203]
[1748231199707,1.53391902,2561.7,2561.6,10.33282491]
[1748231202002,1.53391902,2561.7,2561.6,10.94503823]
[1748231203189,1.53391902,2561.7,2561.6,16.54270211]
[1748231203436,1.53391902,2561.7,2561.6,23.38918676]
[1748231203580,1.53391902,2561.7,2561.6,23.93918676]
[1748231204183,1.53391902,2561.7,2561.6,18.49152288]
[1748231204905,1.53391902,2561.7,2561.6,10.43552288]
[1748231205211,1.53391902,2561.7,2561.6,18.48952288]
[1748231206200,1.53391902,2561.7,2561.6,10.43552288]
[1748231206382,1.53391902,2561.7,2561.6,0.7]
[1748231206584,1.53391902,2561.7,2561.6,8.754]
[1748231211453,1.53391902,2561.7,2561.6,18.0848]
[1748231211662,1.53391902,2561.7,2561.6,18.68210203]
[1748231215849,0.1,2561.9,2561.8,1.3241]
[1748231216139,0.1,2561.9,2561.8,2.4334744]
[1748231217174,0.1,2561.9,2561.8,11.04568772]
[1748231218067,0.1,2561.9,2561.8,10.53361535]
[1748231218271,0.1,2561.9,2561.8,11.04568772]
[1748231218575,0.1,2561.9,2561.8,10.4334744]
[1748231219830,0.1,2561.9,2561.8,9.92140203]
[1748231220231,0.1,2561.9,2561.8,16.06906591]
[1748231221942,0.1,2562.9,2562.1,0.55]
[1748231222156,0.1,2562.9,2562.4,0.8307]
[1748231222331,0.8806,2562.9,2562.6,8.0]
[1748231222532,0.8806,2562.9,2562.7,8.052]
[1748231225630,0.1,2562.9,2562.8,8.0]
[1748231225835,0.1,2562.9,2562.8,9.14730203]
[1748231226033,0.1,2562.9,2562.8,8.052]
[1748231226282,0.1,2562.9,2562.5,1.05705762]
[1748231226429,0.1,2562.9,2562.7,8.0]
[1748231227481,0.1,2562.9,2562.8,0.45975559]
[1748231228438,0.1,2562.9,2562.8,8.54475559]
[1748231229265,0.8997,2562.9,2562.8,8.54275559]
[1748231229987,0.8997,2562.9,2562.8,0.45975559]
[1748231230165,1.29215297,2562.9,2562.8,4.35475559]
[1748231230363,1.29215297,2562.9,2562.8,3.895]
[1748231231558,0.8333,2562.8,2562.6,0.45975559]
[1748231231961,0.8333,2562.8,2562.5,3.895]
[1748231233688,3.85812971,2562.8,2562.5,3.895]
[1748231233998,3.85812971,2562.8,2562.4,0.45975559]
[1748231234308,4.25394268,2562.8,2562.5,8.083]
[1748231235059,0.39581297,2562.8,2562.5,8.083]
[1748231235330,0.1,2562.9,2562.5,8.083]
[1748231237272,0.1,2562.9,2562.5,8.54275559]
[1748231241372,0.1,2562.9,2562.6,0.45975559]
[1748231242833,0.1,2562.9,2562.7,0.59730203]
[1748231243198,0.1,2562.9,2562.8,0.61300746]
[1748231247518,0.1,2562.9,2562.8,1.31300746]
[1748231251124,3.12482971,2562.9,2562.8,1.31300746]
[1748231251341,3.12482971,2562.9,2562.8,5.20800746]
[1748231251641,0.1,2562.9,2562.8,5.20800746]
[1748231253223,0.1,2562.9,2562.8,5.05644429]
[1748231255838,0.1,2562.9,2562.8,4.595]
[1748231258845,0.1,2562.9,2562.8,5.0564928]
[1748231260207,0.1,2562.9,2562.8,9.2144928]
[1748231267517,0.1,2562.9,2562.8,8.753]
[1748231279135,0.1,2562.9,2562.8,4.858]
[1748231279485,3.91372971,2562.9,2562.8,8.753]
[1748231279785,0.8889,2562.9,2562.8,8.753]
[1748231280134,0.8889,2562.9,2562.8,9.21489756]
[1748231280559,3.91372971,2562.9,2562.8,5.31989756]
[1748231280762,4.30510268,2562.9,2562.8,9.21489756]
[1748231282173,4.30510268,2562.9,2562.8,8.753]
[1748231284971,4.30510268,2562.9,2562.8,0.7]
[1748231287401,1.28027297,2562.9,2562.8,0.7]
[1748231287680,3.91372971,2562.9,2562.8,0.7]
[1748231290279,7.81555966,2562.9,2562.8,0.7]
[1748231291201,3.91372971,2562.9,2562.8,0.7]
[1748231293599,7.81555966,2562.9,2562.8,0.7]
[1748231294098,0.8317,2562.5,2562.3,3.896]
[1748231294295,3.02482971,2562.4,2562.3,3.896]
[1748231294470,3.02482971,2562.4,2562.1,8.02]
[1748231294874,0.8317,2562.5,2562.1,8.61730203]
[1748231295092,3.02482971,2562.6,2562.2,0.59730203]
[1748231295997,3.02482971,2562.6,2562.1,8.02]
[1748231297722,3.85652971,2562.4,2562.1,4.124]
[1748231298013,3.02482971,2562.2,2562.0,4.58589756]
[1748231298216,3.02482971,2562.2,2562.1,3.896]
[1748231298819,3.02482971,2562.2,2562.0,0.46189756]
[1748231299120,3.02482971,2562.2,2562.1,3.896]
[1748231299431,3.80075082,2562.2,2562.1,3.896]
[1748231300085,3.02482971,2562.2,2562.1,3.896]
[1748231300698,3.02482971,2562.2,2561.9,4.124]
[1748231300896,3.02482971,2562.0,2561.9,4.124]
[1748231301100,3.85172971,2562.0,2561.9,4.124]
[1748231301301,3.85172971,2562.0,2561.9,8.02]
[1748231301821,3.85172971,2562.0,2561.6,0.46189756]
[1748231302026,3.85172971,2562.0,2561.6,4.124]
[1748231302027,3.02482971,2561.7,2561.6,4.124]
[1748231302181,1.21207297,2562.0,2561.6,8.02]
[1748231302379,3.02482971,2561.8,2561.6,8.02]
[1748231304324,3.02482971,2561.8,2561.7,3.896]
[1748231304501,3.44851998,2561.8,2561.7,3.896]
[1748231307726,3.44851998,2561.8,2561.7,3.897]
[1748231308022,4.24131998,2561.8,2561.5,4.125]
[1748231308228,3.02482971,2561.6,2561.5,4.125]
[1748231308430,3.02482971,2561.6,2561.0,8.415]
[1748231308600,0.30248297,2561.5,2561.3,4.125]
[1748231308812,3.02482971,2561.4,2561.3,4.125]
[1748231308991,3.78172971,2561.4,2561.0,8.415]
[1748231309345,3.02482971,2561.1,2561.0,8.415]
[1748231309503,3.78172971,2561.1,2561.0,3.897]
[1748231309846,4.55033477,2561.1,2561.0,3.897]
[1748231309991,4.55033477,2561.1,2560.9,6.54150534]
[1748231309992,4.55033477,2561.1,2560.9,1.95460778]
[1748231310322,3.90472471,2561.0,2560.9,1.95460778]
[1748231311231,3.90472471,2561.0,2560.7,3.897]
[1748231311430,3.84332971,2560.8,2560.7,3.897]
[1748231313116,3.02482971,2560.8,2560.7,3.897]
[1748231313315,3.84332971,2561.4,2560.7,4.48457703]
[1748231313624,4.25791098,2561.4,2560.8,0.58599369]
[1748231314032,3.02482971,2561.2,2560.8,0.58599369]
[1748231314733,3.02482971,2561.0,2560.6,0.7766]
[1748231314909,3.02482971,2561.0,2560.9,8.024]
[1748231315900,3.02482971,2561.0,2560.9,8.724]
[1748231316101,3.79042971,2561.0,2560.9,8.724]
[1748231316795,7.69515442,2561.0,2560.9,0.7]
[1748231317001,8.46465951,2561.0,2560.9,0.7]
[1748231317433,4.5599348,2561.0,2560.9,0.7]
[1748231320914,3.79042971,2561.0,2560.9,0.7]
[1748231321233,3.79042971,2561.0,2560.7,3.898]
[1748231321432,3.02482971,2560.8,2560.7,3.898]
[1748231321805,3.02482971,2561.2,2560.7,3.898]
[1748231322006,0.7957,2561.3,2560.7,3.898]
[1748231322007,3.02482971,2561.0,2560.7,3.898]
[1748231322910,3.02482971,2560.8,2560.7,3.898]
[1748231326362,3.02482971,2560.8,2560.7,4.598]
[1748231326964,3.02482971,2560.8,2560.7,0.7]
[1748231327134,3.02482971,2560.8,2560.7,4.598]
[1748231327458,3.02482971,2560.8,2560.7,3.898]
[1748231327621,3.79751355,2560.8,2560.2,6.93886388]
[1748231327824,3.79751355,2560.8,2560.3,8.024]
[1748231328349,3.02482971,2560.6,2560.4,3.898]
[1748231330863,0.77268384,2560.8,2560.4,3.898]
[1748231331075,3.02482971,2560.7,2560.4,3.898]
[1748231332880,3.02482971,2560.9,2560.6,0.7]
[1748231334062,0.8107,2561.1,2560.7,0.799]
[1748231334063,3.02482971,2561.1,2560.7,0.799]
[1748231334257,3.02482971,2561.1,2560.8,3.899]
[1748231334770,0.7952,2561.3,2560.8,3.899]
[1748231335088,3.02482971,2561.5,2560.8,3.899]
[1748231335487,3.02482971,2561.3,2560.8,3.899]
[1748231337131,3.02482971,2561.3,2560.9,0.799]
[1748231337328,3.02482971,2561.5,2561.1,0.799]
[1748231337574,3.44851998,2561.8,2561.2,3.899]
[1748231337779,2.80706683,2562.5,2561.2,3.899]
[1748231337780,3.02482971,2562.0,2561.3,0.799]
[1748231338068,3.02482971,2561.8,2561.3,0.799]
[1748231341173,3.02482971,2561.6,2561.3,0.799]
[1748231342605,3.02482971,2561.4,2561.3,0.799]
[1748231342813,3.02482971,2561.4,2561.2,0.46189756]
[1748231343307,3.32731268,2561.4,2561.2,0.46189756]
[1748231344406,3.32731268,2561.4,2561.1,10.04566388]
[1748231344555,3.02482971,2561.2,2561.1,10.04566388]
[1748231344757,3.02482971,2561.2,2561.0,4.126]
[1748231344758,3.02482971,2561.2,2561.0,3.898]
[1748231346489,3.02482971,2561.2,2560.9,4.126]
[1748231346792,3.02482971,2561.2,2561.0,3.898]
[1748231346993,3.35756098,2561.2,2561.0,3.898]
[1748231347991,3.32731268,2561.4,2561.0,3.898]
[1748231349096,3.02482971,2561.2,2561.0,3.898]
[1748231350654,3.02482971,2561.2,2561.1,3.898]
[1748231352978,3.02482971,2561.2,2561.0,3.898]
[1748231353195,3.02482971,2561.2,2560.9,4.126]
[1748231353379,0.30248297,2561.1,2560.9,8.024]
[1748231354704,0.30248297,2561.1,2560.9,4.126]
[1748231354999,3.02482971,2561.0,2560.9,8.024]
[1748231355500,3.02482971,2561.0,2560.9,4.126]
[1748231357125,3.02482971,2561.0,2560.6,0.7]
[1748231357274,3.02482971,2560.7,2560.6,0.7]
[1748231357674,3.02482971,2560.7,2560.5,3.898]
[1748231358995,4.60723136,2560.9,2560.5,3.898]
[1748231359683,3.02482971,2560.7,2560.3,4.8972]
[1748231359923,3.02482971,2560.7,2560.4,3.898]
[1748231360076,3.87606271,2560.7,2560.4,3.898]
[1748231361687,3.02482971,2560.5,2560.4,3.899]
[1748231363821,3.02482971,2560.8,2560.4,3.899]
[1748231363993,3.48555285,2560.8,2560.4,3.899]
[1748231364194,3.48555285,2560.8,2560.1,0.8806]
[1748231364414,3.48555285,2560.8,2560.4,3.899]
[1748231367916,7.39061052,2560.8,2560.4,3.899]
[1748231368119,3.02482971,2560.6,2560.4,3.899]
[1748231368420,0.30248297,2560.5,2560.3,4.126]
[1748231368593,3.81152971,2560.4,2560.3,4.126]
[1748231369121,7.71716945,2560.4,2560.3,4.126]
[1748231369632,15.71716945,2560.4,2560.3,4.126]
[1748231369783,11.81152971,2560.4,2560.3,4.126]
[1748231369982,13.80402394,2560.4,2560.3,4.126]
[1748231371101,8.0,2560.4,2560.3,4.126]
[1748231371598,8.0,2560.4,2560.3,8.025]
[1748231372512,8.0,2560.6,2560.3,8.025]
[1748231372709,3.48555285,2560.8,2560.3,8.025]
[1748231372910,8.0,2560.7,2560.3,8.025]
[1748231375507,3.02482971,2560.8,2560.3,8.025]
[1748231375919,3.02482971,2560.8,2560.5,0.7]
[1748231376122,3.02482971,2560.8,2560.6,3.899]
[1748231378730,8.8048,2561.1,2560.7,0.8197]
[1748231378731,8.0,2561.1,2560.7,0.8197]
[1748231379258,3.41429682,2561.5,2560.7,0.8197]
[1748231379403,8.0,2561.4,2560.7,0.8197]
[1748231379601,3.02482971,2561.5,2560.7,0.8197]
[1748231379818,8.0,2561.4,2560.7,0.8197]
[1748231380230,3.41142875,2561.5,2560.7,0.8197]
[1748231380621,8.0,2561.4,2560.7,0.8197]
[1748231381237,8.0,2561.4,2560.7,1.28159756]
[1748231381560,8.0,2561.4,2560.7,0.46189756]
[1748231381731,8.0,2561.4,2560.8,0.7823]
[1748231382874,3.02482971,2561.5,2560.8,0.7823]
[1748231384383,3.02482971,2561.5,2560.8,1.24419756]
[1748231384563,3.02482971,2561.5,2560.9,0.7848]
[1748231384731,3.02482971,2561.5,2561.0,8.023]
[1748231385979,3.02482971,2561.3,2561.1,8.023]
[1748231386292,3.02482971,2561.3,2560.9,0.7848]
[1748231386508,6.92940196,2561.1,2561.0,4.124]
[1748231387009,3.02482971,2561.1,2561.0,4.124]
[1748231390226,8.0,2561.2,2561.0,4.124]
[1748231390586,3.02482971,2561.3,2561.0,4.9229]
[1748231391390,3.40996223,2561.5,2561.0,4.9229]
[1748231391610,5.4097164,2561.5,2561.0,4.9229]
[1748231391997,9.31368386,2561.5,2561.0,4.9229]
[1748231392533,3.02482971,2561.3,2561.0,4.9229]
[1748231398946,3.02482971,2561.1,2561.0,8.022]
[1748231399850,3.02482971,2561.1,2560.8,0.7645]
[1748231400046,3.02482971,2561.1,2561.0,3.898]
[1748231400746,3.02482971,2561.1,2560.6,0.785]
[1748231400955,3.02482971,2560.8,2560.7,3.898]
[1748231401361,3.02482971,2561.0,2560.7,3.898]
[1748231402016,6.92927598,2561.2,2560.6,0.785]
[1748231402219,3.02482971,2561.1,2560.7,3.898]
[1748231402441,3.02482971,2561.2,2560.7,3.898]
[1748231403027,3.02482971,2561.4,2560.7,3.898]
[1748231403349,3.02482971,2561.4,2560.8,0.785]
[1748231405479,0.814,2561.5,2560.8,0.785]
[1748231405480,3.02482971,2561.9,2561.0,0.7711]
[1748231405626,3.02482971,2561.9,2561.2,0.7711]
[1748231405832,3.02482971,2561.9,2561.3,4.8951]
[1748231406265,3.02482971,2561.9,2561.3,5.5951]
[1748231411382,3.02482971,2561.9,2561.4,3.898]
[1748231411383,3.02482971,2561.7,2561.4,3.898]
[1748231412870,3.02482971,2561.7,2561.5,4.123]
[1748231413186,3.02482971,2561.5,2561.4,4.123]
[1748231413374,3.02482971,2561.5,2561.4,8.021]
[1748231415378,3.02482971,2561.8,2561.5,0.8304]
[1748231416476,11.02482971,2562.0,2561.5,0.8304]
[1748231416692,3.02482971,2561.8,2561.5,0.8304]
[1748231417060,3.02482971,2561.6,2561.5,0.8304]
[1748231417467,3.02482971,2561.6,2561.5,8.021]
[1748231418901,3.02482971,2561.6,2561.3,1.5304]
[1748231419052,11.1607,2562.1,2561.3,0.7]
[1748231419053,3.02482971,2561.4,2561.3,0.7]
[1748231419251,3.02482971,2561.4,2561.3,4.598]
[1748231419553,3.02482971,2561.6,2561.3,4.598]
[1748231419760,3.7978195,2561.6,2561.3,4.598]
[1748231421182,3.7978195,2561.6,2561.3,0.7]
[1748231421379,3.02482971,2561.4,2561.3,0.7]
[1748231421693,3.02482971,2561.4,2561.3,4.598]
[1748231422170,15.68964464,2561.4,2561.3,0.7]
[1748231422761,3.904457,2561.2,2560.9,3.898]
[1748231422967,3.02482971,2561.0,2560.9,3.898]
[1748231423167,3.71775838,2561.0,2560.9,3.898]
[1748231423660,3.9043173,2561.3,2560.9,3.898]
[1748231423661,3.02482971,2561.1,2560.9,3.898]
[1748231425024,12.66486941,2561.4,2560.9,3.898]
[1748231425176,8.0,2561.1,2560.9,3.898]
[1748231425802,3.02482971,2561.0,2560.9,3.898]
[1748231428890,3.02482971,2561.0,2560.7,4.123]
[1748231429091,5.39766612,2561.0,2560.9,3.898]
[1748231429294,3.90495968,2560.9,2560.6,4.123]
[1748231429494,3.02482971,2560.7,2560.3,1.23779756]
[1748231429680,3.02482971,2560.4,2560.3,4.58589756]
[1748231430003,3.02482971,2560.4,2560.3,8.48389756]
[1748231430411,3.02482971,2560.4,2560.3,8.022]
[1748231434903,3.02482971,2560.4,2560.3,3.899]
[1748231436913,3.41016268,2560.4,2560.1,0.1]
[1748231437116,3.02482971,2560.2,2560.1,0.1]
[1748231437417,3.02482971,2560.2,2560.1,3.999]
[1748231438224,3.02482971,2560.2,2560.1,0.1]
[1748231442620,3.81532971,2560.2,2560.1,0.1]
[1748231442921,12.6259785,2560.2,2560.1,0.1]
[1748231443119,16.53192334,2560.2,2560.1,0.1]
[1748231449051,16.91595527,2560.2,2560.1,0.1]
[1748231449205,16.91595527,2560.2,2559.3,0.8298]
[1748231449206,3.02482971,2559.4,2559.2,4.125]
[1748231449410,3.02482971,2559.4,2559.3,3.9]
[1748231449805,3.02482971,2559.8,2559.4,0.8298]
[1748231451564,3.02482971,2559.5,2559.1,0.1]
[1748231451856,0.7805,2559.6,2559.1,0.1]
[1748231451857,3.02482971,2559.2,2559.1,0.1]
[1748231454250,3.02482971,2559.4,2559.1,0.1]
[1748231454445,8.0,2559.5,2559.2,0.7802]
[1748231454747,8.0,2559.5,2559.3,3.9]
[1748231455749,3.02482971,2559.6,2559.3,3.9]
[1748231458225,3.02482971,2559.4,2559.3,3.901]
[1748231459726,3.02482971,2559.4,2559.2,4.6812]
[1748231461944,3.02482971,2559.4,2559.3,3.901]
[1748231465960,3.02482971,2560.0,2559.3,4.601]
[1748231466125,3.02482971,2560.0,2559.4,0.8116]
[1748231468262,0.806,2560.9,2559.6,0.8045]
[1748231468433,0.806,2560.9,2559.8,0.8045]
[1748231468622,0.46606683,2561.0,2560.0,0.8045]
[1748231468960,0.82014827,2560.9,2560.2,0.8057]
[1748231469621,3.02482971,2561.1,2560.2,0.8057]
[1748231470068,3.02482971,2561.1,2560.4,0.8057]
[1748231470223,3.02482971,2561.1,2560.5,3.901]
[1748231471134,4.68987819,2561.3,2560.5,3.901]
[1748231471438,3.81032971,2561.3,2560.7,0.7664]
[1748231471635,1.18103297,2561.2,2560.7,0.7664]
[1748231471838,1.96784104,2561.5,2560.8,0.03905067]
[1748231472039,1.96784104,2561.5,2560.8,0.7664]
[1748231472263,8.7758,2561.6,2560.8,0.7664]
[1748231472451,8.0,2561.6,2560.8,0.7664]
[1748231473105,3.02482971,2561.7,2560.8,0.7664]
[1748231473242,1.19006297,2561.7,2561.0,0.7664]
[1748231473554,3.02482971,2561.7,2561.2,0.7664]
[1748231474976,3.12482971,2561.9,2561.2,0.7664]
[1748231475391,0.1,2561.9,2561.3,4.123]
[1748231475690,0.1,2561.9,2561.4,0.8217]
[1748231478789,0.1,2561.9,2561.5,4.123]
[1748231479089,4.00346551,2561.9,2561.5,8.022]
[1748231479290,1.19104655,2561.8,2561.4,3.899]
[1748231480882,5.09456571,2561.8,2561.4,3.899]
[1748231481088,1.19104655,2561.8,2561.4,3.899]
[1748231481383,1.19104655,2561.8,2561.1,0.7804]
[1748231481589,1.19104655,2561.8,2561.3,3.898]
[1748231481789,1.12189236,2561.7,2561.3,3.898]
[1748231481987,1.12189236,2561.7,2561.2,4.122]
[1748231482196,5.02555197,2561.7,2561.1,0.7804]
[1748231482359,6.02452163,2561.6,2560.6,0.7793]
[1748231482558,0.7146414,2561.5,2560.9,4.122]
[1748231486590,0.8109,2561.4,2560.9,4.122]
[1748231487900,0.7146414,2561.5,2560.9,4.122]
[1748231489202,0.7146414,2561.5,2561.0,3.898]
[1748231489655,4.61863052,2561.5,2560.6,0.7793]
[1748231489855,0.8008,2561.3,2560.7,8.02]
[1748231492608,0.8008,2561.3,2560.7,4.122]
[1748231492760,0.8008,2561.3,2560.6,0.7793]
[1748231493103,4.70510484,2561.3,2560.7,8.02]
[1748231493278,0.8008,2561.3,2560.7,8.02]
[1748231493483,1.127244,2561.2,2560.7,8.02]
[1748231493871,0.8008,2561.3,2560.7,8.02]
[1748231499930,3.81517291,2561.3,2560.7,8.02]
[1748231500831,3.81517291,2561.3,2560.7,4.122]
[1748231501019,0.8073,2561.0,2560.8,3.898]
[1748231501432,0.8073,2561.0,2560.7,4.122]
[1748231501620,1.57992047,2561.0,2560.7,8.02]
[1748231503155,0.8073,2561.0,2560.7,8.02]
[1748231504651,0.8073,2561.0,2560.7,4.122]
[1748231505515,0.8073,2561.0,2560.7,1.774705]
[1748231508939,3.01437291,2560.9,2560.4,0.46189756]
[1748231509119,3.01437291,2560.9,2560.5,3.899]
[1748231509544,0.8073,2561.0,2560.5,3.899]
[1748231510525,6.91933002,2560.9,2560.4,4.58389756]
[1748231510720,3.01437291,2560.9,2560.5,3.899]
[1748231510949,0.75,2560.8,2560.4,8.48289756]
[1748231512239,0.75,2560.8,2560.6,0.6]
[1748231518874,3.01437291,2560.7,2560.6,0.6]
[1748231519056,3.78129952,2560.7,2560.6,0.6]
[1748231521337,0.75,2560.8,2560.6,0.6]
[1748231524159,3.01437291,2560.7,2560.6,0.6]
[1748231524551,3.01437291,2560.7,2560.4,4.122]
[1748231524938,0.7597,2561.0,2560.5,0.809]
[1748231525141,8.7597,2561.2,2560.5,0.809]
[1748231525345,1.93710729,2561.2,2560.5,0.809]
[1748231526345,1.93710729,2561.2,2560.7,0.6]
[1748231526546,3.01437291,2561.1,2560.7,0.6]
[1748231532693,3.01437291,2560.9,2560.7,0.6]
[1748231533054,0.7977,2560.8,2560.7,0.6]
[1748231533276,1.17890729,2560.8,2560.7,0.6]
[1748231534187,5.08393696,2560.8,2560.7,0.6]
[1748231535164,16.09830987,2560.8,2560.7,0.6]
[1748231535569,13.08393696,2560.8,2560.7,0.6]
[1748231535770,3.9055155,2560.5,2560.2,0.46189756]
[1748231535956,3.01437291,2560.3,2560.2,0.46189756]
[1748231536558,3.01437291,2560.3,2560.1,3.899]
[1748231536898,3.79544811,2560.5,2560.1,3.899]
[1748231537901,7.70096311,2560.5,2560.1,3.899]
[1748231538086,3.01437291,2560.3,2560.1,3.899]
[1748231539395,3.01437291,2560.3,2559.9,0.8292]
[1748231539565,3.01437291,2560.3,2560.0,3.899]
[1748231539995,3.01437291,2560.3,2559.9,0.8292]
[1748231540203,3.01437291,2560.3,2559.9,4.7282]
[1748231541504,3.01437291,2560.3,2560.1,0.6]
[1748231544707,0.45754481,2560.3,2560.1,0.6]
[1748231545008,3.79437291,2560.4,2560.1,0.6]
[1748231547307,3.01437291,2560.4,2560.1,0.6]
[1748231547510,1.14090729,2560.8,2560.1,1.4291]
[1748231547715,3.01437291,2560.9,2560.1,1.4291]
[1748231548717,3.01437291,2560.9,2560.2,0.8291]
[1748231549011,8.0,2561.0,2560.3,4.6537]
[1748231549169,3.01437291,2560.9,2560.3,4.6537]
[1748231549372,3.70626819,2560.9,2560.3,4.6537]
[1748231550427,3.01437291,2560.7,2560.3,0.7537]
[1748231550604,3.01437291,2560.5,2560.3,3.9]
[1748231554516,8.0,2560.6,2560.3,3.9]
[1748231554703,9.17935729,2560.6,2560.3,3.9]
[1748231556000,9.17935729,2560.6,2560.2,3.899]
[1748231558130,9.17935729,2560.6,2560.1,1.4288]
[1748231558334,3.01437291,2560.5,2560.2,3.899]